[Event "Live Chess"]
[Site "Chess.com"]
[Date "2023.05.21"]
[Round "-"]
[White "Hussamalhaidar"]
[Black "LiamBellwood"]
[Result "0-1"]
[WhiteElo "1145"]
[BlackElo "1910"]
[TimeControl "300"]
[EndTime "7:57:51 PDT"]
[Termination "LiamBellwood won on time"]

1. b3 {[%clk 0:04:55.9]} 1... e6 {[%clk 0:04:59.9]} 2. Bb2 {[%clk 0:04:54.3]}
2... f5 {[%clk 0:04:59.4]} 3. e3 {[%clk 0:04:50]} 3... Nf6 {[%clk 0:04:59.3]} 4.
Nf3 {[%clk 0:04:44.3]} 4... b6 {[%clk 0:04:58.7]} 5. Nc3 {[%clk 0:04:38.5]} 5...
Bb7 {[%clk 0:04:58.1]} 6. Be2 {[%clk 0:04:35.1]} 6... Be7 {[%clk 0:04:56.5]} 7.
d3 {[%clk 0:04:30.7]} 7... O-O {[%clk 0:04:55.8]} 8. Qd2 {[%clk 0:04:18.6]} 8...
d6 {[%clk 0:04:54.5]} 9. O-O-O {[%clk 0:04:16.1]} 9... e5 {[%clk 0:04:51.6]} 10.
Kb1 {[%clk 0:04:12.3]} 10... a5 {[%clk 0:04:46.4]} 11. a3 {[%clk 0:04:07]} 11...
Nc6 {[%clk 0:04:45]} 12. h4 {[%clk 0:04:02.3]} 12... d5 {[%clk 0:04:43.3]} 13.
h5 {[%clk 0:03:54.8]} 13... Ng4 {[%clk 0:04:40.4]} 14. Rdf1 {[%clk 0:03:43.4]}
14... e4 {[%clk 0:04:17.3]} 15. dxe4 {[%clk 0:03:30.1]} 15... dxe4 {[%clk
0:04:16.2]} 16. Qxd8 {[%clk 0:03:22.5]} 16... Raxd8 {[%clk 0:04:16.1]} 17. Nh4
{[%clk 0:03:11.9]} 17... Bc8 {[%clk 0:03:45.2]} 18. Nb5 {[%clk 0:02:53.7]} 18...
Rd2 {[%clk 0:03:29.3]} 19. Bc4+ {[%clk 0:02:37.4]} 19... Kh8 {[%clk 0:03:21.6]}
20. f3 {[%clk 0:02:32.2]} 20... Nh6 {[%clk 0:02:56.4]} 21. fxe4 {[%clk
0:02:22.8]} 21... Bxh4 {[%clk 0:02:55.4]} 22. Rxh4 {[%clk 0:02:13]} 22... Rxg2
{[%clk 0:02:49.4]} 23. exf5 {[%clk 0:02:09]} 23... Rxf5 {[%clk 0:02:41]} 24.
Rxf5 {[%clk 0:02:05.4]} 24... Nxf5 {[%clk 0:02:40.9]} 25. Rf4 {[%clk 0:02:00.5]}
25... h6 {[%clk 0:02:25.3]} 26. e4 {[%clk 0:01:52.6]} 26... Nce7 {[%clk
0:01:55.9]} 27. exf5 {[%clk 0:01:49.5]} 27... Bxf5 {[%clk 0:01:55.7]} 28. Bd3
{[%clk 0:01:40.7]} 28... Bxd3 {[%clk 0:01:48.9]} 29. cxd3 {[%clk 0:01:37.9]}
29... c6 {[%clk 0:01:42.9]} 30. Rf8+ {[%clk 0:01:30.2]} 30... Kh7 {[%clk
0:01:35.8]} 31. Rf7 {[%clk 0:01:27.5]} 31... Nd5 {[%clk 0:01:25.9]} 32. Nd6
{[%clk 0:01:19.5]} 32... Kg8 {[%clk 0:00:56.8]} 33. Bxg7 {[%clk 0:00:53.3]}
33... Rxg7 {[%clk 0:00:47.2]} 34. Rxg7+ {[%clk 0:00:48.4]} 34... Kxg7 {[%clk
0:00:47.1]} 35. Nf5+ {[%clk 0:00:42.5]} 35... Kh7 {[%clk 0:00:36.3]} 36. Kc2
{[%clk 0:00:37.1]} 36... Nf4 {[%clk 0:00:35.3]} 37. Ng3 {[%clk 0:00:32.1]} 37...
Kg7 {[%clk 0:00:34.5]} 38. Kc3 {[%clk 0:00:28]} 38... Kf6 {[%clk 0:00:33.4]} 39.
Kc4 {[%clk 0:00:22]} 39... Ke5 {[%clk 0:00:30.2]} 40. d4+ {[%clk 0:00:18.3]}
40... Kd6 {[%clk 0:00:29.4]} 41. Nf5+ {[%clk 0:00:16.6]} 41... Kd7 {[%clk
0:00:25.3]} 42. Nxh6 {[%clk 0:00:15.3]} 42... Nxh5 {[%clk 0:00:25]} 43. Nf7
{[%clk 0:00:14.1]} 43... Nf6 {[%clk 0:00:23.4]} 44. Ne5+ {[%clk 0:00:12.9]}
44... Kd6 {[%clk 0:00:22.7]} 45. Nf7+ {[%clk 0:00:11.2]} 45... Ke6 {[%clk
0:00:21.1]} 46. Ng5+ {[%clk 0:00:10]} 46... Kd7 {[%clk 0:00:19.2]} 47. Nf7
{[%clk 0:00:08.2]} 47... Nd5 {[%clk 0:00:16.4]} 48. Ne5+ {[%clk 0:00:07.1]}
48... Kd6 {[%clk 0:00:15]} 49. Nf7+ {[%clk 0:00:05.9]} 49... Kc7 {[%clk
0:00:14.6]} 50. Ne5 {[%clk 0:00:04.6]} 50... Ne3+ {[%clk 0:00:13.9]} 51. Kd3
{[%clk 0:00:01.1]} 51... Nd1 {[%clk 0:00:13.6]} 0-1

[Event "Live Chess"]
[Site "Chess.com"]
[Date "2023.05.21"]
[Round "-"]
[White "TheSmoulderingMaster"]
[Black "garyjc"]
[Result "1-0"]
[WhiteElo "1661"]
[BlackElo "1080"]
[TimeControl "300"]
[EndTime "7:57:59 PDT"]
[Termination "TheSmoulderingMaster won by resignation"]

1. e4 {[%clk 0:04:58.7]} 1... c5 {[%clk 0:04:57.6]} 2. Nf3 {[%clk 0:04:57.5]}
2... a6 {[%clk 0:04:53.6]} 3. d4 {[%clk 0:04:56.4]} 3... cxd4 {[%clk 0:04:47]}
4. Nxd4 {[%clk 0:04:56.3]} 4... b5 {[%clk 0:04:44.3]} 5. Nc3 {[%clk 0:04:53.8]}
5... Bb7 {[%clk 0:04:42.3]} 6. Be3 {[%clk 0:04:52.7]} 6... e5 {[%clk 0:04:30.7]}
7. Nf5 {[%clk 0:04:50.9]} 7... Nf6 {[%clk 0:04:10.6]} 8. Bd3 {[%clk 0:04:45.4]}
8... Be7 {[%clk 0:03:54.4]} 9. Bg5 {[%clk 0:04:39.6]} 9... O-O {[%clk 0:03:51]}
10. O-O {[%clk 0:04:38.1]} 10... Nc6 {[%clk 0:03:36.4]} 11. Nxe7+ {[%clk
0:04:33.9]} 11... Nxe7 {[%clk 0:03:27.1]} 12. Bxf6 {[%clk 0:04:33.2]} 12... gxf6
{[%clk 0:03:23.1]} 13. f4 {[%clk 0:04:31.9]} 13... d6 {[%clk 0:03:15.3]} 14.
fxe5 {[%clk 0:04:29.5]} 14... dxe5 {[%clk 0:03:14]} 15. Rxf6 {[%clk 0:04:26.5]}
15... Ng6 {[%clk 0:03:09.7]} 16. Nd5 {[%clk 0:04:24.5]} 16... Bxd5 {[%clk
0:03:06.8]} 17. Rxg6+ {[%clk 0:04:22]} 17... fxg6 {[%clk 0:03:05.2]} 18. exd5
{[%clk 0:04:21.5]} 18... Qxd5 {[%clk 0:03:00.7]} 19. Qg4 {[%clk 0:04:16.4]}
19... Qd4+ {[%clk 0:02:50.3]} 20. Qxd4 {[%clk 0:04:14.7]} 20... exd4 {[%clk
0:02:49.7]} 21. h3 {[%clk 0:04:13.7]} 21... Rf7 {[%clk 0:02:36]} 22. Be4 {[%clk
0:04:10.4]} 22... Raf8 {[%clk 0:02:34.5]} 23. Bd5 {[%clk 0:04:09.2]} 23... Kg7
{[%clk 0:02:25.6]} 24. Bxf7 {[%clk 0:04:07.1]} 24... Rxf7 {[%clk 0:02:25.2]} 25.
Rd1 {[%clk 0:04:06]} 25... Rd7 {[%clk 0:02:21.1]} 26. Kf2 {[%clk 0:04:02.8]}
26... Rd5 {[%clk 0:02:19.9]} 27. Kf3 {[%clk 0:04:01.1]} 27... Kf6 {[%clk
0:02:16.3]} 28. Ke4 {[%clk 0:03:59.8]} 28... Re5+ {[%clk 0:02:03.7]} 29. Kxd4
{[%clk 0:03:58.5]} 29... Re2 {[%clk 0:02:02.8]} 30. Rf1+ {[%clk 0:03:53.8]}
30... Kg7 {[%clk 0:02:01.2]} 31. Rc1 {[%clk 0:03:44.7]} 31... Rxg2 {[%clk
0:01:59.9]} 32. Kc5 {[%clk 0:03:43.9]} 32... Rg5+ {[%clk 0:01:57.4]} 33. Kb6
{[%clk 0:03:43]} 33... a5 {[%clk 0:01:49.6]} 34. Kxa5 {[%clk 0:03:41.4]} 34...
b4+ {[%clk 0:01:44.6]} 35. Kxb4 {[%clk 0:03:40.4]} 35... Rg3 {[%clk 0:01:43.3]}
36. a4 {[%clk 0:03:38.6]} 36... Rxh3 {[%clk 0:01:42.5]} 37. a5 {[%clk
0:03:38.3]} 37... Rh4+ {[%clk 0:01:41.5]} 38. c4 {[%clk 0:03:36.3]} 38... g5
{[%clk 0:01:39.5]} 39. a6 {[%clk 0:03:35.7]} 39... g4 {[%clk 0:01:35.3]} 40. a7
{[%clk 0:03:34.6]} 1-0

[Event "Live Chess"]
[Site "Chess.com"]
[Date "2023.05.21"]
[Round "-"]
[White "JoshMcK"]
[Black "educatedlad"]
[Result "1-0"]
[WhiteElo "1571"]
[BlackElo "1625"]
[TimeControl "300"]
[EndTime "7:58:01 PDT"]
[Termination "JoshMcK won by resignation"]

1. e4 {[%clk 0:04:59.1]} 1... Nf6 {[%clk 0:04:59.2]} 2. e5 {[%clk 0:04:57.8]}
2... Ng8 {[%clk 0:04:58.9]} 3. d4 {[%clk 0:04:56.7]} 3... Nc6 {[%clk 0:04:58.5]}
4. Nf3 {[%clk 0:04:55.3]} 4... d6 {[%clk 0:04:57.6]} 5. Nc3 {[%clk 0:04:52.4]}
5... dxe5 {[%clk 0:04:56.2]} 6. d5 {[%clk 0:04:47.8]} 6... Nb8 {[%clk
0:04:52.4]} 7. Nxe5 {[%clk 0:04:46.9]} 7... e6 {[%clk 0:04:50.1]} 8. Qf3 {[%clk
0:04:43.6]} 8... Qf6 {[%clk 0:04:46.5]} 9. Bb5+ {[%clk 0:04:28.6]} 9... Nd7
{[%clk 0:04:42.8]} 10. Qxf6 {[%clk 0:04:25.2]} 10... Nxf6 {[%clk 0:04:40.5]} 11.
Nxd7 {[%clk 0:04:23.8]} 11... Bxd7 {[%clk 0:04:35.9]} 12. Bxd7+ {[%clk
0:04:22.6]} 12... Kxd7 {[%clk 0:04:32.3]} 13. dxe6+ {[%clk 0:04:21]} 13... fxe6
{[%clk 0:04:31]} 14. Be3 {[%clk 0:04:18.4]} 14... Bd6 {[%clk 0:04:29.9]} 15.
O-O-O {[%clk 0:04:16.5]} 15... Rad8 {[%clk 0:04:25.7]} 16. Nb5 {[%clk
0:04:15.1]} 16... a6 {[%clk 0:04:21.3]} 17. Nxd6 {[%clk 0:04:13.1]} 17... cxd6
{[%clk 0:04:21.2]} 18. Bb6 {[%clk 0:04:05.8]} 18... Rc8 {[%clk 0:04:18.4]} 19.
Bd4 {[%clk 0:04:00.5]} 19... e5 {[%clk 0:04:16.3]} 20. Bxe5 {[%clk 0:03:57.7]}
20... Ke6 {[%clk 0:04:15.3]} 21. Bxf6 {[%clk 0:03:50.3]} 21... gxf6 {[%clk
0:04:12]} 22. Rhe1+ {[%clk 0:03:47.6]} 22... Kd7 {[%clk 0:04:10]} 23. Rd3 {[%clk
0:03:45.6]} 23... Rhe8 {[%clk 0:04:08.2]} 24. Rxe8 {[%clk 0:03:28.8]} 24... Rxe8
{[%clk 0:04:06]} 25. Kd2 {[%clk 0:03:28.2]} 25... Rg8 {[%clk 0:04:04.5]} 26. g3
{[%clk 0:03:27]} 26... h5 {[%clk 0:04:02.1]} 27. Rd5 {[%clk 0:03:20.2]} 27...
Rg5 {[%clk 0:04:00.5]} 28. Rxg5 {[%clk 0:03:18.3]} 28... fxg5 {[%clk 0:03:59.6]}
29. Ke3 {[%clk 0:03:10.2]} 29... Ke6 {[%clk 0:03:58.4]} 30. Ke4 {[%clk
0:03:09.5]} 30... b5 {[%clk 0:03:57.6]} 31. f4 {[%clk 0:03:07.9]} 31... d5+
{[%clk 0:03:53.8]} 32. Kd4 {[%clk 0:03:04.7]} 32... g4 {[%clk 0:03:48.4]} 33. a3
{[%clk 0:02:58.5]} 33... Kd6 {[%clk 0:03:43.2]} 34. b3 {[%clk 0:02:55.7]} 1-0

[Event "Live Chess"]
[Site "Chess.com"]
[Date "2023.05.21"]
[Round "-"]
[White "ShanthamGrarks"]
[Black "OleksiyJr1"]
[Result "1-0"]
[WhiteElo "1952"]
[BlackElo "1033"]
[TimeControl "300"]
[EndTime "7:58:03 PDT"]
[Termination "ShanthamGrarks won by resignation"]

1. d4 {[%clk 0:04:56.3]} 1... Nf6 {[%clk 0:04:58.2]} 2. Nc3 {[%clk 0:04:54.6]}
2... c6 {[%clk 0:04:58.1]} 3. e4 {[%clk 0:04:53.8]} 3... d5 {[%clk 0:04:55.9]}
4. e5 {[%clk 0:04:52.1]} 4... e6 {[%clk 0:04:54.4]} 5. exf6 {[%clk 0:04:48.2]}
5... Qxf6 {[%clk 0:04:54.3]} 6. Nf3 {[%clk 0:04:47.2]} 6... Qxf3 {[%clk
0:04:52.7]} 7. Qxf3 {[%clk 0:04:43.5]} 7... Bb4 {[%clk 0:04:52.6]} 8. Bd3 {[%clk
0:04:41.8]} 8... Bxc3+ {[%clk 0:04:52.5]} 9. bxc3 {[%clk 0:04:40.5]} 9... Bd7
{[%clk 0:04:51.3]} 10. Ba3 {[%clk 0:04:39.1]} 10... Kd8 {[%clk 0:04:50.7]} 11.
Qxf7 {[%clk 0:04:35.7]} 11... Kc7 {[%clk 0:04:50.6]} 1-0

[Event "Live Chess"]
[Site "Chess.com"]
[Date "2023.05.21"]
[Round "-"]
[White "MartynColebrook"]
[Black "Crowded_House"]
[Result "0-1"]
[WhiteElo "1300"]
[BlackElo "1611"]
[TimeControl "300"]
[EndTime "7:58:06 PDT"]
[Termination "Crowded_House won by checkmate"]

1. e4 {[%clk 0:04:59.3]} 1... e6 {[%clk 0:04:59]} 2. d4 {[%clk 0:04:57.3]} 2...
d5 {[%clk 0:04:58.7]} 3. exd5 {[%clk 0:04:55]} 3... exd5 {[%clk 0:04:57.5]} 4.
c4 {[%clk 0:04:52.9]} 4... c6 {[%clk 0:04:55]} 5. Nc3 {[%clk 0:04:51.1]} 5...
Nf6 {[%clk 0:04:46.3]} 6. Bf4 {[%clk 0:04:48.6]} 6... Bb4 {[%clk 0:04:42.7]} 7.
Qc2 {[%clk 0:04:45.9]} 7... Bxc3+ {[%clk 0:04:41.6]} 8. bxc3 {[%clk 0:04:44.3]}
8... O-O {[%clk 0:04:37.2]} 9. Bd3 {[%clk 0:04:40.9]} 9... h6 {[%clk 0:04:29.6]}
10. Nf3 {[%clk 0:04:39.6]} 10... Re8+ {[%clk 0:04:25.4]} 11. Ne5 {[%clk
0:04:33.1]} 11... Nbd7 {[%clk 0:04:13.6]} 12. O-O {[%clk 0:04:30.2]} 12... Nxe5
{[%clk 0:04:12.6]} 13. dxe5 {[%clk 0:04:27.7]} 13... Nd7 {[%clk 0:04:09.5]} 14.
Rfe1 {[%clk 0:04:23.7]} 14... dxc4 {[%clk 0:04:03.7]} 15. Bxc4 {[%clk
0:04:18.5]} 15... Nb6 {[%clk 0:04:00.1]} 16. Bb3 {[%clk 0:04:16.1]} 16... Nd5
{[%clk 0:03:50.2]} 17. Rad1 {[%clk 0:04:13.1]} 17... Be6 {[%clk 0:03:49]} 18.
Qc1 {[%clk 0:03:49.7]} 18... Qa5 {[%clk 0:03:28.6]} 19. c4 {[%clk 0:03:39.5]}
19... Nxf4 {[%clk 0:03:26.5]} 20. Qxf4 {[%clk 0:03:37.5]} 20... Red8 {[%clk
0:03:20.3]} 21. Rd6 {[%clk 0:03:23.8]} 21... Qxe1# {[%clk 0:03:15.5]} 0-1

[Event "Live Chess"]
[Site "Chess.com"]
[Date "2023.05.21"]
[Round "-"]
[White "davigator"]
[Black "LordBenin"]
[Result "1-0"]
[WhiteElo "2293"]
[BlackElo "1394"]
[TimeControl "300"]
[EndTime "7:58:18 PDT"]
[Termination "davigator won by resignation"]

1. e4 {[%clk 0:04:56]} 1... c6 {[%clk 0:04:58]} 2. d4 {[%clk 0:04:54.7]} 2... d5
{[%clk 0:04:56.5]} 3. e5 {[%clk 0:04:52.4]} 3... Bf5 {[%clk 0:04:54.6]} 4. c4
{[%clk 0:04:43.5]} 4... e6 {[%clk 0:04:51.7]} 5. Nc3 {[%clk 0:04:42.4]} 5... Nd7
{[%clk 0:04:44.5]} 6. g4 {[%clk 0:04:36.9]} 6... Bg6 {[%clk 0:04:33.3]} 7. Nge2
{[%clk 0:04:35.2]} 7... dxc4 {[%clk 0:04:24.8]} 8. Nf4 {[%clk 0:04:34]} 8... Bb4
{[%clk 0:04:20.3]} 9. Bxc4 {[%clk 0:04:27.2]} 9... Nb6 {[%clk 0:04:16.2]} 10.
Bb3 {[%clk 0:04:22.5]} 10... Ne7 {[%clk 0:04:14]} 11. O-O {[%clk 0:04:15.5]}
11... Nbd5 {[%clk 0:03:56.6]} 12. Ncxd5 {[%clk 0:04:13.5]} 12... Nxd5 {[%clk
0:03:55.2]} 13. Bxd5 {[%clk 0:04:10.5]} 13... cxd5 {[%clk 0:03:52.6]} 14. Qa4+
{[%clk 0:04:09.1]} 14... Qd7 {[%clk 0:03:41.2]} 15. Qxb4 {[%clk 0:04:07.7]}
15... Be4 {[%clk 0:03:35]} 16. f3 {[%clk 0:04:05.9]} 16... Bg6 {[%clk
0:03:29.3]} 17. h4 {[%clk 0:04:01.4]} 17... h6 {[%clk 0:03:23.4]} 18. Nxg6
{[%clk 0:03:59.3]} 18... fxg6 {[%clk 0:03:22.4]} 19. Be3 {[%clk 0:03:57.4]}
19... Rc8 {[%clk 0:03:18.7]} 20. Rac1 {[%clk 0:03:55.3]} 20... Kf7 {[%clk
0:03:12.9]} 21. Kg2 {[%clk 0:03:53.5]} 21... Rxc1 {[%clk 0:03:02.2]} 22. Rxc1
{[%clk 0:03:52.1]} 22... b6 {[%clk 0:02:55.5]} 23. Qc3 {[%clk 0:03:47.2]} 23...
Rd8 {[%clk 0:02:43.2]} 24. Rc2 {[%clk 0:03:45.8]} 24... Qe7 {[%clk 0:02:38.7]}
25. Bf2 {[%clk 0:03:42.3]} 25... Rd7 {[%clk 0:02:36.1]} 26. Qd3 {[%clk
0:03:40.8]} 26... Kg8 {[%clk 0:02:26.1]} 27. Qxg6 {[%clk 0:03:35.9]} 1-0

[Event "Live Chess"]
[Site "Chess.com"]
[Date "2023.05.21"]
[Round "-"]
[White "HonestJoe1"]
[Black "WelshTiger"]
[Result "0-1"]
[WhiteElo "2089"]
[BlackElo "2343"]
[TimeControl "300"]
[EndTime "7:58:22 PDT"]
[Termination "WelshTiger won by resignation"]

1. d4 {[%clk 0:04:56.8]} 1... d5 {[%clk 0:04:57.3]} 2. Nf3 {[%clk 0:04:54.8]}
2... Nf6 {[%clk 0:04:56.4]} 3. c4 {[%clk 0:04:53.6]} 3... e6 {[%clk 0:04:55.3]}
4. g3 {[%clk 0:04:52.6]} 4... c5 {[%clk 0:04:54.1]} 5. cxd5 {[%clk 0:04:50.5]}
5... exd5 {[%clk 0:04:53.2]} 6. Bg2 {[%clk 0:04:49.5]} 6... Nc6 {[%clk
0:04:52.5]} 7. O-O {[%clk 0:04:48.4]} 7... Be7 {[%clk 0:04:52]} 8. Nc3 {[%clk
0:04:47.4]} 8... O-O {[%clk 0:04:50.5]} 9. b3 {[%clk 0:04:46.4]} 9... Ne4 {[%clk
0:04:42.8]} 10. Bb2 {[%clk 0:04:42.8]} 10... Bf6 {[%clk 0:04:36.6]} 11. Na4
{[%clk 0:04:26.4]} 11... b5 {[%clk 0:04:22.8]} 12. Nc3 {[%clk 0:04:12.7]} 12...
Nxd4 {[%clk 0:04:12.8]} 13. Nxd4 {[%clk 0:04:10.7]} 13... Bxd4 {[%clk 0:04:12]}
14. e3 {[%clk 0:04:07.3]} 14... Bxc3 {[%clk 0:04:08.5]} 0-1

[Event "Live Chess"]
[Site "Chess.com"]
[Date "2023.05.21"]
[Round "-"]
[White "AlanPaling"]
[Black "Conradical12"]
[Result "1-0"]
[WhiteElo "1418"]
[BlackElo "1532"]
[TimeControl "300"]
[EndTime "7:58:24 PDT"]
[Termination "AlanPaling won by checkmate"]

1. c4 {[%clk 0:04:59.3]} 1... e5 {[%clk 0:04:57.9]} 2. Nc3 {[%clk 0:04:55.6]}
2... Nc6 {[%clk 0:04:57.3]} 3. Nf3 {[%clk 0:04:54.4]} 3... Bc5 {[%clk
0:04:56.2]} 4. Nxe5 {[%clk 0:04:52.2]} 4... Nxe5 {[%clk 0:04:53.7]} 5. d4 {[%clk
0:04:50.5]} 5... Nxc4 {[%clk 0:04:52.6]} 6. dxc5 {[%clk 0:04:49.1]} 6... Na5
{[%clk 0:04:48.8]} 7. e4 {[%clk 0:04:44.6]} 7... Nc6 {[%clk 0:04:47.1]} 8. Be3
{[%clk 0:04:41.2]} 8... Nge7 {[%clk 0:04:46.2]} 9. Bc4 {[%clk 0:04:37.2]} 9...
O-O {[%clk 0:04:44.5]} 10. Qe2 {[%clk 0:04:28]} 10... d6 {[%clk 0:04:32.6]} 11.
cxd6 {[%clk 0:04:24.5]} 11... cxd6 {[%clk 0:04:30.3]} 12. O-O {[%clk 0:04:20]}
12... Ng6 {[%clk 0:04:26.6]} 13. Nd5 {[%clk 0:04:08.5]} 13... Be6 {[%clk
0:04:20.3]} 14. Rfd1 {[%clk 0:04:03.1]} 14... Na5 {[%clk 0:04:11.7]} 15. Rac1
{[%clk 0:03:52.6]} 15... Bxd5 {[%clk 0:04:04.3]} 16. Bxd5 {[%clk 0:03:47.2]}
16... Qd7 {[%clk 0:04:00.4]} 17. Qd2 {[%clk 0:03:39.6]} 17... Ne5 {[%clk
0:03:52.5]} 18. Qxa5 {[%clk 0:03:33.6]} 18... Qg4 {[%clk 0:03:47.9]} 19. Rf1
{[%clk 0:02:33.8]} 19... Nf3+ {[%clk 0:03:39]} 20. Kh1 {[%clk 0:02:32.3]} 20...
Nh4 {[%clk 0:03:37.3]} 21. Rg1 {[%clk 0:02:22]} 21... Ng6 {[%clk 0:03:36.3]} 22.
f3 {[%clk 0:02:17]} 22... Qh5 {[%clk 0:03:34.2]} 23. Qd2 {[%clk 0:02:01.3]}
23... Ne5 {[%clk 0:03:27.5]} 24. Bb3 {[%clk 0:01:48.8]} 24... Kh8 {[%clk
0:03:22]} 25. Bf4 {[%clk 0:01:29]} 25... g5 {[%clk 0:03:17.6]} 26. Bg3 {[%clk
0:01:26.8]} 26... f5 {[%clk 0:03:11.7]} 27. exf5 {[%clk 0:01:19.7]} 27... Rxf5
{[%clk 0:02:57.6]} 28. Qxd6 {[%clk 0:01:02.6]} 28... Ng6 {[%clk 0:02:33.6]} 29.
Rc7 {[%clk 0:00:48.9]} 29... Raf8 {[%clk 0:02:20.6]} 30. Qd7 {[%clk 0:00:37.1]}
30... Nf4 {[%clk 0:02:14.1]} 31. Qg7# {[%clk 0:00:34.3]} 1-0

[Event "Live Chess"]
[Site "Chess.com"]
[Date "2023.05.21"]
[Round "-"]
[White "GEMdzq"]
[Black "luckywookie"]
[Result "1-0"]
[WhiteElo "2227"]
[BlackElo "811"]
[TimeControl "300"]
[EndTime "7:58:27 PDT"]
[Termination "GEMdzq won by checkmate"]

1. e4 {[%clk 0:04:59]} 1... c6 {[%clk 0:04:56.2]} 2. d4 {[%clk 0:04:58]} 2... d5
{[%clk 0:04:54.6]} 3. e5 {[%clk 0:04:57.3]} 3... c5 {[%clk 0:04:52.7]} 4. dxc5
{[%clk 0:04:56.8]} 4... Nc6 {[%clk 0:04:50.9]} 5. Nf3 {[%clk 0:04:54.9]} 5... e6
{[%clk 0:04:46.3]} 6. Be3 {[%clk 0:04:50.1]} 6... Nge7 {[%clk 0:04:44]} 7. Bb5
{[%clk 0:04:29]} 7... Qa5+ {[%clk 0:04:34.9]} 8. Nc3 {[%clk 0:04:26.6]} 8... a6
{[%clk 0:04:32.4]} 9. Bd3 {[%clk 0:04:18.6]} 9... Nf5 {[%clk 0:04:06.6]} 10.
Bxf5 {[%clk 0:04:16.6]} 10... exf5 {[%clk 0:04:03.8]} 11. Qxd5 {[%clk 0:04:05]}
11... Be6 {[%clk 0:03:52.8]} 12. Qd2 {[%clk 0:04:02.7]} 12... Bxc5 {[%clk
0:03:47.5]} 13. O-O {[%clk 0:03:59.4]} 13... Bxe3 {[%clk 0:03:45.4]} 14. Qxe3
{[%clk 0:03:58.7]} 14... O-O {[%clk 0:03:43.8]} 15. a3 {[%clk 0:03:51.6]} 15...
Rad8 {[%clk 0:03:36.3]} 16. Rfd1 {[%clk 0:03:45.8]} 16... Rxd1+ {[%clk 0:03:34]}
17. Rxd1 {[%clk 0:03:45.7]} 17... Rd8 {[%clk 0:03:32]} 18. Rxd8+ {[%clk
0:03:38.3]} 18... Qxd8 {[%clk 0:03:29.8]} 19. Qd3 {[%clk 0:03:33.5]} 19... Kf8
{[%clk 0:03:11.9]} 20. Kf1 {[%clk 0:03:22.4]} 20... h6 {[%clk 0:03:10]} 21. h4
{[%clk 0:03:17.9]} 21... Ke7 {[%clk 0:03:08]} 22. Qe3 {[%clk 0:03:06.4]} 22...
Bc4+ {[%clk 0:02:56.8]} 23. Kg1 {[%clk 0:02:46.9]} 23... Be6 {[%clk 0:02:22.4]}
24. Qc5+ {[%clk 0:02:44.9]} 24... Ke8 {[%clk 0:02:17.5]} 25. b4 {[%clk
0:02:36.2]} 25... Nb8 {[%clk 0:01:59.4]} 26. a4 {[%clk 0:02:30.3]} 26... Nd7
{[%clk 0:01:58.2]} 27. Qd6 {[%clk 0:02:13.1]} 27... g5 {[%clk 0:01:37.4]} 28.
hxg5 {[%clk 0:01:47]} 28... hxg5 {[%clk 0:01:35.1]} 29. Nd4 {[%clk 0:01:46.3]}
29... Nxe5 {[%clk 0:01:17.9]} 30. Qxe5 {[%clk 0:01:43.1]} 30... g4 {[%clk
0:01:05]} 31. Qh8+ {[%clk 0:01:37.8]} 31... Ke7 {[%clk 0:01:03.4]} 32. Qxd8+
{[%clk 0:01:37]} 32... Kxd8 {[%clk 0:01:01.9]} 33. Nxe6+ {[%clk 0:01:36.9]}
33... fxe6 {[%clk 0:00:59.9]} 34. Kf1 {[%clk 0:01:34.6]} 34... Ke7 {[%clk
0:00:59]} 35. Ke2 {[%clk 0:01:34.5]} 35... Kd6 {[%clk 0:00:58.3]} 36. Kd3 {[%clk
0:01:34.4]} 36... Ke5 {[%clk 0:00:57.6]} 37. g3 {[%clk 0:01:32.4]} 37... b6
{[%clk 0:00:55.4]} 38. a5 {[%clk 0:01:26.7]} 38... f4 {[%clk 0:00:54.3]} 39. Ne2
{[%clk 0:01:23.3]} 39... fxg3 {[%clk 0:00:52]} 40. fxg3 {[%clk 0:01:23.2]} 40...
b5 {[%clk 0:00:45.1]} 41. c4 {[%clk 0:01:22.6]} 41... bxc4+ {[%clk 0:00:41]} 42.
Kxc4 {[%clk 0:01:18.5]} 42... Kd6 {[%clk 0:00:38.5]} 43. b5 {[%clk 0:01:17.3]}
43... axb5+ {[%clk 0:00:35.4]} 44. Kxb5 {[%clk 0:01:17.2]} 44... Kc7 {[%clk
0:00:34]} 45. a6 {[%clk 0:01:12.3]} 45... Kb8 {[%clk 0:00:32.6]} 46. Kb6 {[%clk
0:01:11.1]} 46... Ka8 {[%clk 0:00:30.3]} 47. Nc3 {[%clk 0:01:09.7]} 47... e5
{[%clk 0:00:27.8]} 48. Ne4 {[%clk 0:01:08.2]} 48... Kb8 {[%clk 0:00:25.5]} 49.
Nf6 {[%clk 0:01:07.5]} 49... Ka8 {[%clk 0:00:23.6]} 50. Nxg4 {[%clk 0:01:06.7]}
50... e4 {[%clk 0:00:22]} 51. Ne3 {[%clk 0:01:05.8]} 51... Kb8 {[%clk
0:00:20.1]} 52. g4 {[%clk 0:01:05.7]} 52... Ka8 {[%clk 0:00:19.3]} 53. g5 {[%clk
0:01:05.6]} 53... Kb8 {[%clk 0:00:18.6]} 54. g6 {[%clk 0:01:05.5]} 54... Ka8
{[%clk 0:00:18]} 55. g7 {[%clk 0:01:05.3]} 55... Kb8 {[%clk 0:00:17.5]} 56.
g8=Q# {[%clk 0:01:05]} 1-0